[Event "Titled Tuesday Blitz March 14 Late 2023"]
[White "Wang, Alexander J"]
[Black "Petukhov, Dmitry"]
[WhiteFideId "30955270"]
[BlackFideId "4142748"]
[WhiteElo "2257"]
[BlackElo "2311"]
[Result "0-1"]
[Round "11"]
[TimeControl "180+2"]
[Date "2023.03.14"]
[WhiteClock "0:00:23"]
[BlackClock "0:00:49"]

1. e4 {[%clk 0:03:00]}  d5 {[%clk 0:02:59]} 2. exd5 {[%clk 0:02:57]}  Qxd5 {[%clk 0:03:00]} 3. Nc3 {[%clk 0:02:54]}  Qa5 {[%clk 0:03:00]} 4. Nf3 {[%clk 0:02:54]}  Nf6 {[%clk 0:03:00]} 5. d4 {[%clk 0:02:51]}  Nc6 {[%clk 0:02:59]} 6. Be3 {[%clk 0:02:43]}  Bg4 {[%clk 0:02:59]} 7. h3 {[%clk 0:02:30]}  Bh5 {[%clk 0:02:56]} 8. Be2 {[%clk 0:02:23]}  O-O-O {[%clk 0:02:56]} 9. O-O {[%clk 0:02:07]}  e5 {[%clk 0:02:55]} 10. Nxe5 {[%clk 0:01:58]}  Nxe5 {[%clk 0:02:28]} 11. Bxh5 {[%clk 0:01:51]}  Ng6 {[%clk 0:02:13]} 12. Bg4+ {[%clk 0:01:49]}  Kb8 {[%clk 0:02:12]} 13. Qe2 {[%clk 0:01:37]}  Bd6 {[%clk 0:02:04]} 14. Bf3 {[%clk 0:01:36]}  Nh4 {[%clk 0:01:58]} 15. g3 {[%clk 0:01:31]}  Nxf3+ {[%clk 0:01:57]} 16. Qxf3 {[%clk 0:01:31]}  Rhe8 {[%clk 0:01:57]} 17. Rab1 {[%clk 0:01:25]}  Bb4 {[%clk 0:01:55]} 18. a3 {[%clk 0:01:21]}  Bxc3 {[%clk 0:01:53]} 19. bxc3 {[%clk 0:01:21]}  b6 {[%clk 0:01:51]} 20. Bf4 {[%clk 0:01:14]}  Qd5 {[%clk 0:01:45]} 21. Qxd5 {[%clk 0:01:10]}  Nxd5 {[%clk 0:01:45]} 22. Bd2 {[%clk 0:01:03]}  Re2 {[%clk 0:01:45]} 23. Rbd1 {[%clk 0:01:03]}  Nf6 {[%clk 0:01:40]} 24. Rfe1 {[%clk 0:01:02]}  Rde8 {[%clk 0:01:39]} 25. Kf1 {[%clk 0:01:02]}  Rxe1+ {[%clk 0:01:38]} 26. Rxe1 {[%clk 0:01:03]}  Rxe1+ {[%clk 0:01:38]} 27. Kxe1 {[%clk 0:01:02]}  b5 {[%clk 0:01:39]} 28. Bf4 {[%clk 0:01:02]}  Kb7 {[%clk 0:01:39]} 29. f3 {[%clk 0:01:01]}  Nd5 {[%clk 0:01:31]} 30. Kd2 {[%clk 0:00:59]}  Nb6 {[%clk 0:01:23]} 31. Kd3 {[%clk 0:00:58]}  Nc4 {[%clk 0:01:21]} 32. Bc1 {[%clk 0:00:57]}  c6 {[%clk 0:01:17]} 33. a4 {[%clk 0:00:57]}  a6 {[%clk 0:01:13]} 34. axb5 {[%clk 0:00:57]}  axb5 {[%clk 0:01:14]} 35. Bf4 {[%clk 0:00:56]}  f5 {[%clk 0:01:09]} 36. Be5 {[%clk 0:00:54]}  g6 {[%clk 0:01:09]} 37. f4 {[%clk 0:00:53]}  Kb6 {[%clk 0:01:08]} 38. g4 {[%clk 0:00:53]}  Ka5 {[%clk 0:01:07]} 39. gxf5 {[%clk 0:00:51]}  gxf5 {[%clk 0:01:07]} 40. Ke2 {[%clk 0:00:49]}  Ka4 {[%clk 0:01:04]} 41. Kd1 {[%clk 0:00:44]}  Ka3 {[%clk 0:01:02]} 42. Kc1 {[%clk 0:00:42]}  Ka2 {[%clk 0:01:01]} 43. Bf6 {[%clk 0:00:40]}  Ne3 {[%clk 0:01:00]} 44. Be5 {[%clk 0:00:38]}  Nd5 {[%clk 0:01:00]} 45. Kd2 {[%clk 0:00:37]}  Kb2 {[%clk 0:00:58]} 46. Kd3 {[%clk 0:00:36]}  Kc1 {[%clk 0:00:55]} 47. Bd6 {[%clk 0:00:33]}  Nb6 {[%clk 0:00:51]} 48. Ba3+ {[%clk 0:00:33]}  Kd1 {[%clk 0:00:51]} 49. Be7 {[%clk 0:00:28]}  Ke1 {[%clk 0:00:48]} 50. c4 {[%clk 0:00:25]}  bxc4+ {[%clk 0:00:47]} 51. Kc3 {[%clk 0:00:21]}  Nd5+ {[%clk 0:00:48]} 52. Kxc4 {[%clk 0:00:21]}  Nxe7 {[%clk 0:00:49]} 53. Kc5 {[%clk 0:00:22]}  Ke2 {[%clk 0:00:48]} 54. Kd6 {[%clk 0:00:19]}  Nd5 {[%clk 0:00:48]} 55. Kxc6 {[%clk 0:00:18]}  Nxf4 {[%clk 0:00:49]} 56. d5 {[%clk 0:00:16]}  Nxd5 {[%clk 0:00:46]} 57. Kxd5 {[%clk 0:00:16]}  f4 {[%clk 0:00:47]} 58. c4 {[%clk 0:00:17]}  f3 {[%clk 0:00:48]} 59. c5 {[%clk 0:00:18]}  f2 {[%clk 0:00:49]} 60. c6 {[%clk 0:00:19]}  f1=Q {[%clk 0:00:50]} 61. c7 {[%clk 0:00:20]}  Qf5+ {[%clk 0:00:49]} 62. Kd6 {[%clk 0:00:20]}  Qxh3 {[%clk 0:00:49]} 63. Kc6 {[%clk 0:00:19]}  Qc8 {[%clk 0:00:49]} 64. Kb6 {[%clk 0:00:20]}  h5 {[%clk 0:00:50]} 65. Kc6 {[%clk 0:00:20]}  h4 {[%clk 0:00:50]} 66. Kb6 {[%clk 0:00:21]}  h3 {[%clk 0:00:51]} 67. Kc5 {[%clk 0:00:21]}  h2 {[%clk 0:00:52]} 68. Kd6 {[%clk 0:00:22]}  h1=Q {[%clk 0:00:51]} 69. Ke5 {[%clk 0:00:22]}  Qxc7+ {[%clk 0:00:51]} 70. Kd4 {[%clk 0:00:23]}  Qh4+ {[%clk 0:00:49]} 71. Kd5 {[%clk 0:00:23]}  Qhc4# {[%clk 0:00:49]} 0-1


[Site "https://www.chess.com"]

[Event "Titled Tuesday Blitz March 14 Late 2023"]
[White "Rodrigues, Tiago Pereira"]
[Black "Harish, Neeraj"]
[WhiteFideId "2101203"]
[BlackFideId "30958130"]
[WhiteElo "2168"]
[BlackElo "1963"]
[Result "1-0"]
[Round "11"]
[TimeControl "180+2"]
[Date "2023.03.14"]
[WhiteClock "0:00:35"]
[BlackClock "0:00:21"]

1. d4 {[%clk 0:03:00]}  d5 {[%clk 0:02:59]} 2. Bf4 {[%clk 0:03:00]}  Nf6 {[%clk 0:02:59]} 3. e3 {[%clk 0:03:00]}  c6 {[%clk 0:02:59]} 4. c4 {[%clk 0:03:00]}  e6 {[%clk 0:02:51]} 5. Nc3 {[%clk 0:03:00]}  Nbd7 {[%clk 0:02:43]} 6. h3 {[%clk 0:02:57]}  Be7 {[%clk 0:02:42]} 7. Nf3 {[%clk 0:02:55]}  O-O {[%clk 0:02:43]} 8. Qc2 {[%clk 0:02:55]}  h6 {[%clk 0:02:30]} 9. c5 {[%clk 0:02:54]}  b6 {[%clk 0:02:26]} 10. b4 {[%clk 0:02:51]}  a5 {[%clk 0:02:26]} 11. b5 {[%clk 0:02:50]}  bxc5 {[%clk 0:02:17]} 12. bxc6 {[%clk 0:02:49]}  Nb6 {[%clk 0:02:13]} 13. Rb1 {[%clk 0:02:41]}  Nc4 {[%clk 0:01:59]} 14. Bxc4 {[%clk 0:02:35]}  dxc4 {[%clk 0:02:00]} 15. c7 {[%clk 0:02:32]}  Qe8 {[%clk 0:01:57]} 16. Rb8 {[%clk 0:02:19]}  Ra7 {[%clk 0:01:48]} 17. O-O {[%clk 0:02:13]}  Rb7 {[%clk 0:01:46]} 18. Rb1 {[%clk 0:02:11]}  Rxb1+ {[%clk 0:01:36]} 19. Qxb1 {[%clk 0:02:11]}  Nd5 {[%clk 0:01:36]} 20. Nxd5 {[%clk 0:01:47]}  exd5 {[%clk 0:01:35]} 21. Qb6 {[%clk 0:01:17]}  c3 {[%clk 0:01:30]} 22. Qb3 {[%clk 0:01:05]}  cxd4 {[%clk 0:01:25]} 23. Nxd4 {[%clk 0:01:04]}  Qd7 {[%clk 0:01:21]} 24. Qxc3 {[%clk 0:01:00]}  Bb4 {[%clk 0:01:15]} 25. Qc6 {[%clk 0:00:53]}  Qxc6 {[%clk 0:00:39]} 26. Nxc6 {[%clk 0:00:52]}  Bd7 {[%clk 0:00:39]} 27. Nxb4 {[%clk 0:00:40]}  axb4 {[%clk 0:00:38]} 28. Bd6 {[%clk 0:00:40]}  Rc8 {[%clk 0:00:35]} 29. Bxb4 {[%clk 0:00:39]}  Kh7 {[%clk 0:00:36]} 30. Bd6 {[%clk 0:00:37]}  Kg6 {[%clk 0:00:36]} 31. a4 {[%clk 0:00:37]}  Kf5 {[%clk 0:00:36]} 32. a5 {[%clk 0:00:37]}  Ke6 {[%clk 0:00:36]} 33. Bg3 {[%clk 0:00:36]}  d4 {[%clk 0:00:21]} 34. exd4 {[%clk 0:00:36]}  Kd5 {[%clk 0:00:20]} 35. a6 {[%clk 0:00:36]}  Kc6 {[%clk 0:00:21]} 36. a7 {[%clk 0:00:35]} 1-0


[Site "https://www.chess.com"]

[Event "Titled Tuesday Blitz March 14 Late 2023"]
[White "Bove, Alessandro"]
[Black "Goncalves, Davi Sulzbacher"]
[WhiteFideId "814121"]
[BlackFideId "2154510"]
[WhiteElo "2387"]
[BlackElo "2182"]
[Result "1-0"]
[Round "11"]
[TimeControl "180+2"]
[Date "2023.03.14"]
[WhiteClock "0:01:19"]
[BlackClock "0:00:01"]

1. d4 {[%clk 0:03:00]}  Nf6 {[%clk 0:02:59]} 2. Nf3 {[%clk 0:03:01]}  e6 {[%clk 0:02:58]} 3. Bg5 {[%clk 0:03:01]}  h6 {[%clk 0:02:58]} 4. Bh4 {[%clk 0:03:01]}  b6 {[%clk 0:02:57]} 5. e3 {[%clk 0:03:01]}  Bb7 {[%clk 0:02:57]} 6. Nbd2 {[%clk 0:03:01]}  d6 {[%clk 0:02:56]} 7. Be2 {[%clk 0:02:59]}  Nbd7 {[%clk 0:02:54]} 8. c3 {[%clk 0:02:59]}  g5 {[%clk 0:02:37]} 9. Bg3 {[%clk 0:02:59]}  Ne4 {[%clk 0:02:37]} 10. Nxe4 {[%clk 0:02:58]}  Bxe4 {[%clk 0:02:38]} 11. Bd3 {[%clk 0:02:58]}  Nf6 {[%clk 0:02:32]} 12. Qc2 {[%clk 0:02:54]}  Bxd3 {[%clk 0:02:03]} 13. Qxd3 {[%clk 0:02:55]}  Qd7 {[%clk 0:02:03]} 14. O-O-O {[%clk 0:02:53]}  b5 {[%clk 0:01:30]} 15. e4 {[%clk 0:02:52]}  d5 {[%clk 0:01:24]} 16. Ne5 {[%clk 0:02:40]}  dxe4 {[%clk 0:00:50]} 17. Nxd7 {[%clk 0:02:38]}  exd3 {[%clk 0:00:51]} 18. Nxf6+ {[%clk 0:02:37]}  Ke7 {[%clk 0:00:52]} 19. Ne4 {[%clk 0:02:37]}  f5 {[%clk 0:00:52]} 20. Be5 {[%clk 0:02:26]}  Rh7 {[%clk 0:00:51]} 21. Nc5 {[%clk 0:02:23]}  h5 {[%clk 0:00:37]} 22. Rxd3 {[%clk 0:02:22]}  c6 {[%clk 0:00:37]} 23. Re1 {[%clk 0:02:21]}  Kf7 {[%clk 0:00:34]} 24. g3 {[%clk 0:02:19]}  h4 {[%clk 0:00:33]} 25. f4 {[%clk 0:02:18]}  g4 {[%clk 0:00:32]} 26. Nb7 {[%clk 0:02:04]}  hxg3 {[%clk 0:00:20]} 27. hxg3 {[%clk 0:02:03]}  Rh3 {[%clk 0:00:15]} 28. Na5 {[%clk 0:01:54]}  Rc8 {[%clk 0:00:14]} 29. Nb3 {[%clk 0:01:54]}  Be7 {[%clk 0:00:12]} 30. Kc2 {[%clk 0:01:52]}  Ra8 {[%clk 0:00:11]} 31. Nc5 {[%clk 0:01:52]}  a5 {[%clk 0:00:10]} 32. Bc7 {[%clk 0:01:48]}  Rh6 {[%clk 0:00:08]} 33. Nd7 {[%clk 0:01:47]}  Ra6 {[%clk 0:00:05]} 34. Rdd1 {[%clk 0:01:40]}  a4 {[%clk 0:00:04]} 35. Rh1 {[%clk 0:01:38]}  Rxh1 {[%clk 0:00:04]} 36. Rxh1 {[%clk 0:01:39]}  Ra7 {[%clk 0:00:04]} 37. Ne5+ {[%clk 0:01:39]}  Kg7 {[%clk 0:00:04]} 38. Bb8 {[%clk 0:01:19]}  Rb7 {[%clk 0:00:01]} 39. Nxc6 {[%clk 0:01:19]}  Bf6 {[%clk 0:00:01]} 40. Be5 {[%clk 0:01:19]} 1-0


[Site "https://www.chess.com"]

[Event "Titled Tuesday Blitz March 14 Late 2023"]
[White "Kalajzic, Ivan"]
[Black "Senft, Sean"]
[WhiteFideId "14506378"]
[BlackFideId "2044960"]
[WhiteElo "2203"]
[BlackElo "1989"]
[Result "0-1"]
[Round "11"]
[TimeControl "180+2"]
[Date "2023.03.14"]
[WhiteClock "0:00:01"]
[BlackClock "0:00:32"]

1. c4 {[%clk 0:02:59]}  c6 {[%clk 0:02:58]} 2. e4 {[%clk 0:02:58]}  d5 {[%clk 0:02:58]} 3. Nc3 {[%clk 0:02:58]}  dxe4 {[%clk 0:02:58]} 4. Nxe4 {[%clk 0:02:58]}  Bf5 {[%clk 0:02:55]} 5. Ng3 {[%clk 0:02:56]}  Bg6 {[%clk 0:02:56]} 6. Nf3 {[%clk 0:02:52]}  e6 {[%clk 0:02:56]} 7. Ne5 {[%clk 0:02:48]}  Bd6 {[%clk 0:02:55]} 8. Nxg6 {[%clk 0:02:42]}  hxg6 {[%clk 0:02:56]} 9. Ne4 {[%clk 0:02:23]}  Bc7 {[%clk 0:02:44]} 10. g3 {[%clk 0:02:18]}  Nf6 {[%clk 0:02:44]} 11. Qc2 {[%clk 0:02:07]}  Nxe4 {[%clk 0:02:42]} 12. Qxe4 {[%clk 0:02:06]}  Nd7 {[%clk 0:02:43]} 13. Bg2 {[%clk 0:02:04]}  Nc5 {[%clk 0:02:43]} 14. Qc2 {[%clk 0:01:57]}  Nd3+ {[%clk 0:02:43]} 15. Ke2 {[%clk 0:01:55]}  Nxc1+ {[%clk 0:02:31]} 16. Raxc1 {[%clk 0:01:54]}  Qd4 {[%clk 0:02:31]} 17. Qc3 {[%clk 0:01:46]}  Qc5 {[%clk 0:02:21]} 18. d4 {[%clk 0:01:40]}  Qh5+ {[%clk 0:02:21]} 19. Qf3 {[%clk 0:01:35]}  Qa5 {[%clk 0:02:14]} 20. a3 {[%clk 0:01:27]}  O-O-O {[%clk 0:02:10]} 21. b4 {[%clk 0:01:22]}  Qg5 {[%clk 0:01:54]} 22. Rcd1 {[%clk 0:01:13]}  f6 {[%clk 0:01:44]} 23. h4 {[%clk 0:01:12]}  Qh6 {[%clk 0:01:40]} 24. b5 {[%clk 0:01:07]}  e5 {[%clk 0:01:24]} 25. bxc6 {[%clk 0:00:57]}  e4 {[%clk 0:01:24]} 26. cxb7+ {[%clk 0:00:54]}  Kb8 {[%clk 0:01:25]} 27. Qe3 {[%clk 0:00:52]}  Qh5+ {[%clk 0:01:24]} 28. Ke1 {[%clk 0:00:40]}  Ba5+ {[%clk 0:01:23]} 29. Rd2 {[%clk 0:00:33]}  f5 {[%clk 0:01:01]} 30. Qf4+ {[%clk 0:00:23]}  Kxb7 {[%clk 0:00:53]} 31. g4 {[%clk 0:00:23]}  Bxd2+ {[%clk 0:00:52]} 32. Qxd2 {[%clk 0:00:11]}  Qxg4 {[%clk 0:00:46]} 33. Qb4+ {[%clk 0:00:11]}  Kc7 {[%clk 0:00:45]} 34. Qc5+ {[%clk 0:00:09]}  Kd7 {[%clk 0:00:45]} 35. Qxa7+ {[%clk 0:00:08]}  Ke8 {[%clk 0:00:43]} 36. Qxg7 {[%clk 0:00:08]}  Rf8 {[%clk 0:00:41]} 37. Qe5+ {[%clk 0:00:07]}  Kf7 {[%clk 0:00:42]} 38. Rg1 {[%clk 0:00:04]}  Rfe8 {[%clk 0:00:42]} 39. Qc7+ {[%clk 0:00:03]}  Kg8 {[%clk 0:00:39]} 40. h5 {[%clk 0:00:02]}  Qxh5 {[%clk 0:00:39]} 41. Bf1 {[%clk 0:00:01]}  Rxd4 {[%clk 0:00:34]} 42. Be2 {[%clk 0:00:02]}  Qh7 {[%clk 0:00:33]} 43. Qc5 {[%clk 0:00:01]}  Red8 {[%clk 0:00:32]} 0-1


[Site "https://www.chess.com"]

[Event "Titled Tuesday Blitz March 14 Late 2023"]
[White "Chan, Kim Yew"]
[Black "Biriukov, Ilja"]
[WhiteFideId "5717981"]
[BlackFideId "4113373"]
[WhiteElo "2206"]
[BlackElo "2426"]
[Result "0-1"]
[Round "11"]
[TimeControl "180+2"]
[Date "2023.03.14"]
[WhiteClock "0:00:11"]
[BlackClock "0:00:13"]

1. d4 {[%clk 0:02:58]}  Nf6 {[%clk 0:02:59]} 2. c4 {[%clk 0:02:57]}  g6 {[%clk 0:02:59]} 3. Nf3 {[%clk 0:02:55]}  Bg7 {[%clk 0:03:00]} 4. Nc3 {[%clk 0:02:55]}  d6 {[%clk 0:03:00]} 5. Bg5 {[%clk 0:02:55]}  O-O {[%clk 0:03:01]} 6. e3 {[%clk 0:02:55]}  h6 {[%clk 0:02:59]} 7. Bh4 {[%clk 0:02:54]}  Nbd7 {[%clk 0:02:59]} 8. Be2 {[%clk 0:02:52]}  c6 {[%clk 0:02:57]} 9. Qc2 {[%clk 0:02:50]}  e5 {[%clk 0:02:56]} 10. O-O {[%clk 0:02:48]}  g5 {[%clk 0:02:53]} 11. Bg3 {[%clk 0:02:48]}  Nh5 {[%clk 0:02:53]} 12. Rfd1 {[%clk 0:02:25]}  Nxg3 {[%clk 0:02:52]} 13. hxg3 {[%clk 0:02:25]}  Qe7 {[%clk 0:02:52]} 14. Bd3 {[%clk 0:02:14]}  Nf6 {[%clk 0:02:33]} 15. c5 {[%clk 0:01:47]}  exd4 {[%clk 0:02:22]} 16. cxd6 {[%clk 0:01:45]}  Qxd6 {[%clk 0:02:21]} 17. Nxd4 {[%clk 0:01:43]}  Qe5 {[%clk 0:02:05]} 18. Nf3 {[%clk 0:01:18]}  Qe7 {[%clk 0:02:04]} 19. Bc4 {[%clk 0:01:06]}  Bg4 {[%clk 0:02:01]} 20. Rd2 {[%clk 0:01:04]}  Rad8 {[%clk 0:01:59]} 21. Rad1 {[%clk 0:01:00]}  Bh5 {[%clk 0:01:55]} 22. Bd3 {[%clk 0:00:39]}  a6 {[%clk 0:01:34]} 23. Ne2 {[%clk 0:00:39]}  Bg4 {[%clk 0:01:31]} 24. Ned4 {[%clk 0:00:37]}  Nd5 {[%clk 0:01:25]} 25. a3 {[%clk 0:00:37]}  Nc7 {[%clk 0:00:49]} 26. Bf5 {[%clk 0:00:35]}  Bxf3 {[%clk 0:00:35]} 27. gxf3 {[%clk 0:00:34]}  c5 {[%clk 0:00:29]} 28. Bh7+ {[%clk 0:00:20]}  Kh8 {[%clk 0:00:28]} 29. Nf5 {[%clk 0:00:21]}  Qf6 {[%clk 0:00:19]} 30. Nxg7 {[%clk 0:00:20]}  Kxg7 {[%clk 0:00:18]} 31. Be4 {[%clk 0:00:19]}  Rxd2 {[%clk 0:00:17]} 32. Qxd2 {[%clk 0:00:18]}  b5 {[%clk 0:00:14]} 33. Qd7 {[%clk 0:00:16]}  Ne6 {[%clk 0:00:13]} 34. Rd2 {[%clk 0:00:11]}  Rd8 {[%clk 0:00:13]} 0-1


[Site "https://www.chess.com"]

[Event "Titled Tuesday Blitz March 14 Late 2023"]
[White "Romero Ruscalleda, Josep"]
[Black "Hoffmann, Asa"]
[WhiteFideId "2231859"]
[BlackFideId "2001470"]
[WhiteElo "2183"]
[BlackElo "2117"]
[Result "1-0"]
[Round "11"]
[TimeControl "180+2"]
[Date "2023.03.14"]
[WhiteClock "0:00:17"]
[BlackClock "0:00:16"]

1. e4 {[%clk 0:03:00]}  d6 {[%clk 0:02:55]} 2. d4 {[%clk 0:03:00]}  Nf6 {[%clk 0:02:52]} 3. Nc3 {[%clk 0:03:00]}  c6 {[%clk 0:02:52]} 4. Nf3 {[%clk 0:03:00]}  Bg4 {[%clk 0:02:51]} 5. h3 {[%clk 0:03:00]}  Bh5 {[%clk 0:02:51]} 6. Be2 {[%clk 0:02:58]}  e6 {[%clk 0:02:51]} 7. O-O {[%clk 0:02:57]}  d5 {[%clk 0:02:51]} 8. e5 {[%clk 0:02:56]}  Nfd7 {[%clk 0:02:50]} 9. Nh2 {[%clk 0:02:53]}  Bg6 {[%clk 0:02:50]} 10. f4 {[%clk 0:02:49]}  c5 {[%clk 0:02:50]} 11. Be3 {[%clk 0:02:49]}  cxd4 {[%clk 0:02:49]} 12. Bxd4 {[%clk 0:02:49]}  Nc6 {[%clk 0:02:49]} 13. Bf2 {[%clk 0:02:46]}  Bc5 {[%clk 0:02:47]} 14. g4 {[%clk 0:02:43]}  Bxf2+ {[%clk 0:02:44]} 15. Rxf2 {[%clk 0:02:42]}  Be4 {[%clk 0:02:27]} 16. Nxe4 {[%clk 0:02:38]}  dxe4 {[%clk 0:02:27]} 17. Bb5 {[%clk 0:02:21]}  Qb6 {[%clk 0:02:24]} 18. Bxc6 {[%clk 0:02:18]}  bxc6 {[%clk 0:02:15]} 19. c3 {[%clk 0:02:18]}  O-O-O {[%clk 0:02:14]} 20. Qe2 {[%clk 0:02:06]}  Nc5 {[%clk 0:02:11]} 21. Kh1 {[%clk 0:01:48]}  Rd3 {[%clk 0:02:04]} 22. b4 {[%clk 0:01:43]}  Na4 {[%clk 0:02:00]} 23. Qxe4 {[%clk 0:01:38]}  Rxh3 {[%clk 0:01:51]} 24. Rf3 {[%clk 0:01:38]}  Nxc3 {[%clk 0:01:42]} 25. Qd3 {[%clk 0:01:33]}  Rxf3 {[%clk 0:01:38]} 26. Nxf3 {[%clk 0:01:33]}  Nd5 {[%clk 0:01:36]} 27. Qe4 {[%clk 0:01:13]}  Qe3 {[%clk 0:01:30]} 28. Re1 {[%clk 0:01:07]}  Qxe4 {[%clk 0:01:26]} 29. Rxe4 {[%clk 0:01:07]}  Kb7 {[%clk 0:01:23]} 30. a3 {[%clk 0:01:03]}  Rd8 {[%clk 0:01:18]} 31. f5 {[%clk 0:01:01]}  Nb6 {[%clk 0:01:10]} 32. Ng5 {[%clk 0:00:59]}  exf5 {[%clk 0:01:02]} 33. gxf5 {[%clk 0:00:59]}  f6 {[%clk 0:00:57]} 34. Ne6 {[%clk 0:00:54]}  Rd1+ {[%clk 0:00:55]} 35. Kg2 {[%clk 0:00:54]}  fxe5 {[%clk 0:00:55]} 36. Nc5+ {[%clk 0:00:51]}  Kc7 {[%clk 0:00:51]} 37. Rxe5 {[%clk 0:00:51]}  Nd5 {[%clk 0:00:43]} 38. Re8 {[%clk 0:00:45]}  a5 {[%clk 0:00:38]} 39. bxa5 {[%clk 0:00:41]}  Rc1 {[%clk 0:00:34]} 40. Ne6+ {[%clk 0:00:38]}  Kd6 {[%clk 0:00:34]} 41. Nxg7 {[%clk 0:00:37]}  c5 {[%clk 0:00:29]} 42. a6 {[%clk 0:00:32]}  Ra1 {[%clk 0:00:28]} 43. a7 {[%clk 0:00:31]}  Nc7 {[%clk 0:00:28]} 44. Ne6 {[%clk 0:00:23]}  Rxa3 {[%clk 0:00:24]} 45. Nxc7 {[%clk 0:00:22]}  Rxa7 {[%clk 0:00:22]} 46. Nb5+ {[%clk 0:00:22]}  Kd7 {[%clk 0:00:23]} 47. Nxa7 {[%clk 0:00:19]}  Kxe8 {[%clk 0:00:23]} 48. Kf3 {[%clk 0:00:20]}  Kf7 {[%clk 0:00:23]} 49. Nc6 {[%clk 0:00:19]}  Kf6 {[%clk 0:00:22]} 50. Kf4 {[%clk 0:00:19]}  c4 {[%clk 0:00:22]} 51. Ne5 {[%clk 0:00:17]}  c3 {[%clk 0:00:22]} 52. Ng4+ {[%clk 0:00:17]}  Kg7 {[%clk 0:00:20]} 53. Ne3 {[%clk 0:00:16]}  h5 {[%clk 0:00:18]} 54. Kg5 {[%clk 0:00:16]}  Kf7 {[%clk 0:00:17]} 55. Kxh5 {[%clk 0:00:16]}  Kf6 {[%clk 0:00:18]} 56. Kg4 {[%clk 0:00:17]}  Ke5 {[%clk 0:00:18]} 57. Kg5 {[%clk 0:00:17]}  Ke4 {[%clk 0:00:18]} 58. Nc2 {[%clk 0:00:15]}  Kd3 {[%clk 0:00:18]} 59. Nb4+ {[%clk 0:00:16]}  Kc4 {[%clk 0:00:18]} 60. Na2 {[%clk 0:00:16]}  c2 {[%clk 0:00:17]} 61. f6 {[%clk 0:00:16]}  Kb3 {[%clk 0:00:17]} 62. Nc1+ {[%clk 0:00:16]}  Kb2 {[%clk 0:00:17]} 63. Ne2 {[%clk 0:00:16]}  Kb1 {[%clk 0:00:16]} 64. f7 {[%clk 0:00:17]} 1-0


[Site "https://www.chess.com"]

[Event "Titled Tuesday Blitz March 14 Late 2023"]
[White "Rego, Pedro Filipe"]
[Black "Tagliati, Eleonore"]
[WhiteFideId "1904310"]
[BlackFideId "45172234"]
[WhiteElo "2193"]
[BlackElo "2247"]
[Result "1/2-1/2"]
[Round "11"]
[TimeControl "180+2"]
[Date "2023.03.14"]
[WhiteClock "0:01:41"]
[BlackClock "0:01:11"]

1. b3 {[%clk 0:03:00]}  e5 {[%clk 0:02:57]} 2. Bb2 {[%clk 0:03:01]}  Nc6 {[%clk 0:02:56]} 3. e3 {[%clk 0:03:01]}  Nf6 {[%clk 0:02:55]} 4. Bb5 {[%clk 0:02:59]}  Bd6 {[%clk 0:02:53]} 5. Ne2 {[%clk 0:02:58]}  a6 {[%clk 0:02:53]} 6. Bxc6 {[%clk 0:02:58]}  dxc6 {[%clk 0:02:53]} 7. O-O {[%clk 0:02:58]}  O-O {[%clk 0:02:53]} 8. d4 {[%clk 0:02:56]}  exd4 {[%clk 0:02:51]} 9. Qxd4 {[%clk 0:02:50]}  Bf5 {[%clk 0:02:45]} 10. Qh4 {[%clk 0:02:44]}  Be7 {[%clk 0:02:42]} 11. Nd4 {[%clk 0:02:40]}  Bg6 {[%clk 0:02:39]} 12. Qg3 {[%clk 0:02:34]}  Ne4 {[%clk 0:02:36]} 13. Qf3 {[%clk 0:02:34]}  Ng5 {[%clk 0:02:31]} 14. Qe2 {[%clk 0:02:34]}  c5 {[%clk 0:02:27]} 15. Nf3 {[%clk 0:02:30]}  Bh5 {[%clk 0:02:27]} 16. Nbd2 {[%clk 0:02:31]}  Bf6 {[%clk 0:02:21]} 17. Bxf6 {[%clk 0:02:28]}  Qxf6 {[%clk 0:02:22]} 18. Rad1 {[%clk 0:02:13]}  Rad8 {[%clk 0:02:18]} 19. e4 {[%clk 0:02:08]}  Nxf3+ {[%clk 0:02:15]} 20. Nxf3 {[%clk 0:02:07]}  Bxf3 {[%clk 0:02:14]} 21. Qxf3 {[%clk 0:02:07]}  Qxf3 {[%clk 0:02:14]} 22. gxf3 {[%clk 0:02:08]}  f6 {[%clk 0:02:12]} 23. Rfe1 {[%clk 0:02:07]}  Kf7 {[%clk 0:02:07]} 24. Kf1 {[%clk 0:02:07]}  Ke6 {[%clk 0:02:05]} 25. Ke2 {[%clk 0:02:07]}  Rd6 {[%clk 0:02:02]} 26. Rxd6+ {[%clk 0:02:06]}  Kxd6 {[%clk 0:01:58]} 27. Ke3 {[%clk 0:02:06]}  Ke7 {[%clk 0:01:55]} 28. Rg1 {[%clk 0:02:05]}  g6 {[%clk 0:01:54]} 29. Rd1 {[%clk 0:02:06]}  Rd8 {[%clk 0:01:52]} 30. Rxd8 {[%clk 0:02:04]}  Kxd8 {[%clk 0:01:53]} 31. e5 {[%clk 0:02:04]}  Ke7 {[%clk 0:01:51]} 32. Ke4 {[%clk 0:01:55]}  c6 {[%clk 0:01:49]} 33. c4 {[%clk 0:01:53]}  Ke6 {[%clk 0:01:36]} 34. f4 {[%clk 0:01:53]}  b6 {[%clk 0:01:31]} 35. a3 {[%clk 0:01:52]}  h6 {[%clk 0:01:29]} 36. a4 {[%clk 0:01:47]}  f5+ {[%clk 0:01:20]} 37. Ke3 {[%clk 0:01:45]}  Ke7 {[%clk 0:01:10]} 38. h4 {[%clk 0:01:43]}  h5 {[%clk 0:01:08]} 39. Kd3 {[%clk 0:01:42]}  Ke6 {[%clk 0:01:08]} 40. Kc3 {[%clk 0:01:42]}  a5 {[%clk 0:01:06]} 41. Kd2 {[%clk 0:01:34]}  Ke7 {[%clk 0:01:06]} 42. Ke3 {[%clk 0:01:34]}  Ke6 {[%clk 0:01:06]} 43. Kf3 {[%clk 0:01:35]}  Ke7 {[%clk 0:01:07]} 44. Ke3 {[%clk 0:01:36]}  Ke6 {[%clk 0:01:07]} 45. Kd3 {[%clk 0:01:37]}  Ke7 {[%clk 0:01:08]} 46. Kc2 {[%clk 0:01:37]}  Ke6 {[%clk 0:01:08]} 47. Kb2 {[%clk 0:01:38]}  Ke7 {[%clk 0:01:09]} 48. Ka3 {[%clk 0:01:39]}  Ke6 {[%clk 0:01:10]} 49. Ka2 {[%clk 0:01:40]}  Ke7 {[%clk 0:01:08]} 50. Kb1 {[%clk 0:01:41]}  Ke6 {[%clk 0:01:08]} 51. Kc1 {[%clk 0:01:42]}  Ke7 {[%clk 0:01:09]} 52. Kb2 {[%clk 0:01:41]}  Ke6 {[%clk 0:01:10]} 53. Kc1 {[%clk 0:01:36]}  Ke7 {[%clk 0:01:10]} 54. Kd1 {[%clk 0:01:37]}  Ke6 {[%clk 0:01:11]} 55. Ke1 {[%clk 0:01:38]}  Ke7 {[%clk 0:01:11]} 56. Ke2 {[%clk 0:01:39]}  Ke6 {[%clk 0:01:12]} 57. Kf3 {[%clk 0:01:39]}  Ke7 {[%clk 0:01:12]} 58. Kg2 {[%clk 0:01:39]}  Ke6 {[%clk 0:01:12]} 59. Kh3 {[%clk 0:01:40]}  Ke7 {[%clk 0:01:11]} 60. Kh2 {[%clk 0:01:41]}  Ke6 {[%clk 0:01:11]} 61. Kh1 {[%clk 0:01:41]}  Ke7 {[%clk 0:01:11]} 62. Kg2 {[%clk 0:01:42]}  Ke6 {[%clk 0:01:12]} 63. Kg1 {[%clk 0:01:43]}  Ke7 {[%clk 0:01:12]} 64. Kf1 {[%clk 0:01:44]}  Ke6 {[%clk 0:01:13]} 65. Ke2 {[%clk 0:01:42]}  Ke7 {[%clk 0:01:11]} 66. Ke3 {[%clk 0:01:41]} 1/2-1/2


[Site "https://www.chess.com"]